[Event "FIDE World Rapid-ch Open 2018"]
[White "Frolyanov, Dmitry"]
[Black "Steinberg, Nitzan"]
[Site "St. Petersburg"]
[Round "10.53"]
[Annotator "ChessBase"]
[Result "1/2-1/2"]
[Date "2018.12.27"]
[WhiteElo "2517"]
[BlackElo "2532"]
[PlyCount "284"]
[TimeControl "900+10"]

1. e4 {[%emt 0:0:0]} c5 {[%emt 0:0:0]} 2. Nf3 {[%emt 0:0:0]} d6 {[%emt 0:0:0]} 3. d4 {[%emt 0:0:0]} cxd4 {[%emt 0:0:0]} 4. Nxd4 {[%emt 0:0:0]} Nf6 {[%emt 0:0:0]} 5. Nc3 {[%emt 0:0:0]} a6 {[%emt 0:0:0]} 6. Be3 {[%emt 0:0:4]
} e5 {[%emt 0:0:1]} 7. Nf3 {[%emt 0:0:6]} h6 {[%emt 0:1:25]} 8. Bc4 {[%emt 0:0:34]} Qc7 {[%emt 0:0:30]} 9. Bb3 {[%emt 0:0:11]} Nc6 {[%emt 0:1:4]
} 10. 0-0 {[%emt 0:0:45]} Be7 {[%emt 0:0:29]} 11. Nh4 {[%emt 0:0:0]} Na5 {[%emt 0:1:53]} 12. Na4 {[%emt 0:1:13]} Nxb3 {[%emt 0:3:20]} 13. cxb3 {[%emt 0:0:4]} Nxe4 {[%emt 0:3:17]} 14. Nb6 {[%emt 0:0:9]} Rb8 {[%emt 0:0:57]
} 15. Rc1 {[%emt 0:1:50]} Qd8 {[%emt 0:0:2]} 16. Nxc8 {[%emt 0:0:7]
} Bxh4 {[%emt 0:1:27]} 17. Qg4 {[%emt 0:0:59]} d5 {[%emt 0:0:0]} 18. Nb6 {[%emt 0:3:34]} 0-0 {[%emt 0:0:50]} 19. Bxh6 {[%emt 0:0:6]} Qf6 {[%emt 0:0:50]} 20. Nxd5 {[%emt 0:1:53]} Bxf2+ {[%emt 0:0:2]} 21. Kh1 {[%emt 0:1:3]
} Qxh6 {[%emt 0:0:1]} 22. Qxe4 {[%emt 0:0:9]} Bg3 {[%emt 0:0:0]} 23. h3 {[%emt 0:0:3]} Rbe8 {[%emt 0:0:32]} 24. Rc7 {[%emt 0:1:20]} Qh4 {[%emt 0:0:26]} 25. Qf5 {[%emt 0:0:8]} Bf4 {[%emt 0:0:20]} 26. Nxf4 {[%emt 0:0:19]
} exf4 {[%emt 0:0:1]} 27. Qxf4 {[%emt 0:0:11]} Qxf4 {[%emt 0:0:0]} 28. Rxf4 {[%emt 0:0:2]} b5 {[%emt 0:0:17]} 29. Rf2 {[%emt 0:1:30]} Re6 {[%emt 0:0:8]} 30. Kh2 {[%emt 0:0:4]} f5 {[%emt 0:0:12]} 31. Rd2 {[%emt 0:0:24]
} Rfe8 {[%emt 0:0:10]} 32. Rcd7 {[%emt 0:0:25]} Kh7 {[%emt 0:0:0]} 33. Kg3 {[%emt 0:0:17]} Re3+ {[%emt 0:0:9]} 34. Kf2 {[%emt 0:0:24]} R8e6 {[%emt 0:0:10]} 35. R7d6 {[%emt 0:0:19]} Re2+ {[%emt 0:0:2]} 36. Rxe2 {[%emt 0:0:3]} Rxd6 {[%emt 0:0:0]} 37. Kf3 {[%emt 0:0:19]} Kg6 {[%emt 0:0:0]} 38. Rc2 {[%emt 0:0:17]} Kf6 {[%emt 0:0:5]} 39. Ke3 {[%emt 0:0:4]} g5 {[%emt 0:0:14]} 40. a4 {[%emt 0:0:9]} Re6+ {[%emt 0:0:19]} 41. Kf3 {[%emt 0:0:22]
} Rd6 {[%emt 0:0:24]} 42. axb5 {[%emt 0:0:6]} axb5 {[%emt 0:0:0]} 43. Ke3 {[%emt 0:0:2]} Rd5 {[%emt 0:0:15]} 44. b4 {[%emt 0:0:5]} Ke6 {[%emt 0:0:14]} 45. Rc6+ {[%emt 0:0:10]} Kd7 {[%emt 0:0:11]} 46. Rc5 {[%emt 0:0:12]
} Kd6 {[%emt 0:0:10]} 47. Rxd5+ {[%emt 0:0:6]} Kxd5 {[%emt 0:0:0]} 48. g3 {[%emt 0:0:4]} Ke5 {[%emt 0:0:17]} 49. Kf3 {[%emt 0:0:24]} Ke6 {[%emt 0:0:13]} 50. h4 {[%emt 0:0:20]} Kf6 {[%emt 0:0:5]} 51. Ke2 {[%emt 0:0:17]
} Kg6 {[%emt 0:0:14]} 52. hxg5 Kxg5 {[%emt 0:0:1]} 53. Kf3 {[%emt 0:0:8]
} Kg6 {[%emt 0:0:18]} 54. Kf4 Kf6 55. Ke3 {[%emt 0:0:19]} Ke5 {[%emt 0:0:19]
} 56. Kf3 {[%emt 0:0:3]} Ke6 {[%emt 0:0:9]} 57. Kf4 {[%emt 0:0:0]} Kf6 {[%emt 0:0:1]} 58. Kf3 {[%emt 0:0:23]} Ke5 {[%emt 0:0:2]} 59. Kf2 {[%emt 0:0:8]} Ke4 {[%emt 0:0:16]} 60. Ke2 {[%emt 0:0:4]} Kd4 {[%emt 0:0:18]
} 61. Kf3 {[%emt 0:0:3]} Ke5 {[%emt 0:0:6]} 62. Ke3 {[%emt 0:0:0]} Kf6 {[%emt 0:0:13]} 63. Kd4 {[%emt 0:0:2]} Kg5 {[%emt 0:0:11]} 64. Kd5 {[%emt 0:0:33]} Kh5 {[%emt 0:0:13]} 65. Kc5 {[%emt 0:0:26]} Kg4 {[%emt 0:0:2]
} 66. Kxb5 {[%emt 0:0:1]} Kxg3 {[%emt 0:0:1]} 67. Kc6 {[%emt 0:0:4]
} f4 {[%emt 0:0:3]} 68. b5 {[%emt 0:0:1]} f3 {[%emt 0:0:1]} 69. b6 {[%emt 0:0:1]} f2 {[%emt 0:0:0]} 70. b7 {[%emt 0:0:1]} f1=Q {[%emt 0:0:3]
} 71. b8=Q+ {[%emt 0:0:2]} Kg4 {[%emt 0:0:26]} 72. Qb4+ {[%emt 0:0:4]
} Kh3 {[%emt 0:0:5]} 73. Qc3+ {[%emt 0:0:6]} Kg4 {[%emt 0:0:0]} 74. b4 {[%emt 0:0:23]} Qa6+ {[%emt 0:0:4]} 75. Kd5 {[%emt 0:0:13]} Qb7+ {[%emt 0:0:9]} 76. Kc4 {[%emt 0:0:11]} Qf7+ {[%emt 0:0:3]} 77. Kb5 {[%emt 0:0:9]
} Qe8+ {[%emt 0:0:45]} 78. Qc6 {[%emt 0:0:5]} Qb8+ {[%emt 0:0:0]} 79. Kc5 {[%emt 0:0:4]} Qa7+ {[%emt 0:0:9]} 80. Kd5 {[%emt 0:0:12]} Kf3 {[%emt 0:0:26]} 81. b5 {[%emt 0:0:5]} Qa2+ {[%emt 0:0:10]} 82. Kd6+ {[%emt 0:0:4]
} Ke3 {[%emt 0:0:11]} 83. b6 {[%emt 0:0:3]} Qh2+ {[%emt 0:0:0]} 84. Kd7 {[%emt 0:0:25]} Qh7+ {[%emt 0:0:5]} 85. Kd8 {[%emt 0:0:6]} Qh4+ {[%emt 0:0:5]} 86. Kc7 {[%emt 0:0:3]} Qe7+ {[%emt 0:0:7]} 87. Kc8 {[%emt 0:0:27]
} Qf8+ {[%emt 0:0:3]} 88. Kd7 {[%emt 0:0:7]} Qf7+ {[%emt 0:0:0]} 89. Kc8 {[%emt 0:0:8]} Qf8+ {[%emt 0:0:6]} 90. Kb7 {[%emt 0:0:1]} Qe7+ {[%emt 0:0:13]} 91. Qc7 {[%emt 0:0:14]} Qe4+ {[%emt 0:0:2]} 92. Qc6 {[%emt 0:0:16]
} Qe7+ {[%emt 0:0:1]} 93. Kb8 {[%emt 0:0:35]} Qf8+ {[%emt 0:0:0]} 94. Qc8 {[%emt 0:0:7]} Qd6+ {[%emt 0:0:20]} 95. Ka7 {[%emt 0:0:2]} Qa3+ {[%emt 0:0:25]} 96. Qa6 {[%emt 0:0:2]} Qc5 {[%emt 0:0:2]} 97. Qa4 {[%emt 0:0:25]
} Kf2 {[%emt 0:0:22]} 98. Ka6 {[%emt 0:0:15]} Qd6 {[%emt 0:0:0]} 99. Qa2+ {[%emt 0:0:17]} Ke3 {[%emt 0:0:5]} 100. Qb3+ {[%emt 0:0:2]} Kf2 {[%emt 0:0:8]} 101. Qc2+ {[%emt 0:0:15]} Ke3 {[%emt 0:0:21]} 102. Kb5 {[%emt 0:0:5]
} Qd7+ {[%emt 0:0:3]} 103. Qc6 {[%emt 0:0:5]} Qd3+ {[%emt 0:0:0]} 104. Qc4 {[%emt 0:0:4]} Qd7+ {[%emt 0:0:2]} 105. Kb4 {[%emt 0:0:0]} Kf2 {[%emt 0:0:19]} 106. Qe4 {[%emt 0:0:15]} Qd6+ {[%emt 0:0:21]} 107. Kb5 {[%emt 0:0:7]} Qd7+ {[%emt 0:0:1]} 108. Ka6 {[%emt 0:0:16]} Qd6 {[%emt 0:0:5]
} 109. Qc4 {[%emt 0:0:22]} Ke3 {[%emt 0:0:23]} 110. Qc3+ {[%emt 0:0:22]
} Kf2 {[%emt 0:0:8]} 111. Ka7 {[%emt 0:0:3]} Qd7+ {[%emt 0:0:0]} 112. b7 {[%emt 0:0:2]} Qa4+ {[%emt 0:0:1]} 113. Kb6 {[%emt 0:0:3]
} Qf4 {[%emt 0:0:13]} 114. Qb2+ {[%emt 0:0:12]} Kf1 {[%emt 0:0:9]} 115. Ka5 {[%emt 0:0:10]} Qc7+ {[%emt 0:0:10]} 116. Ka4 {[%emt 0:0:13]} Qc4+ {[%emt 0:0:0]} 117. Qb4 {[%emt 0:0:14]} Qa6+ {[%emt 0:0:6]} 118. Kb3 {[%emt 0:0:0]} Qd3+ {[%emt 0:0:2]} 119. Kb2 {[%emt 0:0:11]} Qe2+ {[%emt 0:0:2]} 120. Ka1 {[%emt 0:0:14]} Qe5+ {[%emt 0:0:3]} 121. Ka2 {[%emt 0:0:19]} Qe2+ {[%emt 0:0:24]
} 122. Kb3 {[%emt 0:0:25]} Qd3+ {[%emt 0:0:3]} 123. Ka2 {[%emt 0:0:10]
} Qe2+ {[%emt 0:0:20]} 124. Ka1 {[%emt 0:0:12]} Qe5+ {[%emt 0:0:0]} 125. Kb1 {[%emt 0:0:2]} Qf5+ {[%emt 0:0:9]} 126. Kc1 {[%emt 0:0:0]} Qg5+ {[%emt 0:0:8]} 127. Kc2 {[%emt 0:0:5]} Qf5+ {[%emt 0:0:6]} 128. Kd2 {[%emt 0:0:6]} Qg5+ {[%emt 0:0:27]} 129. Kd3 {[%emt 0:0:4]} Qd5+ {[%emt 0:0:7]
} 130. Ke3 {[%emt 0:0:5]} Qe5+ {[%emt 0:0:12]} 131. Qe4 {[%emt 0:0:1]
} Qc5+ {[%emt 0:0:10]} 132. Kf4 {[%emt 0:0:5]} Qc7+ {[%emt 0:0:0]} 133. Kg4 {[%emt 0:0:5]} Qg7+ {[%emt 0:0:5]} 134. Kf4 {[%emt 0:0:0]} Qc7+ {[%emt 0:0:4]} 135. Ke3 {[%emt 0:0:4]} Qc5+ {[%emt 0:0:13]} 136. Kd2 {[%emt 0:0:11]} Qa5+ {[%emt 0:0:9]} 137. Kc2 {[%emt 0:0:7]} Qc5+ {[%emt 0:0:17]
} 138. Kb3 {[%emt 0:0:23]} Qb5+ {[%emt 0:0:3]} 139. Kc3 {[%emt 0:0:11]
} Qa5+ {[%emt 0:0:9]} 140. Kd4 {[%emt 0:0:7]} Qb4+ {[%emt 0:0:0]} 141. Ke5 {[%emt 0:0:4]} Qe7+ {[%emt 0:0:11]} 142. Kf4 {[%emt 0:0:0]} Qc7+ {Ke5} 1/2-1/2

[Event "FIDE World Rapid-ch Open 2018"]
[White "Sychev, Klementy"]
[Black "Roiz, Michael"]
[Site "St. Petersburg"]
[Round "10.54"]
[Annotator "ChessBase"]
[Result "1/2-1/2"]
[Date "2018.12.27"]
[WhiteElo "2537"]
[BlackElo "2605"]
[PlyCount "84"]
[TimeControl "900+10"]

1. Nf3 {[%emt 0:0:0]} Nf6 {[%emt 0:0:0]} 2. c4 {[%emt 0:0:6]} e6 {[%emt 0:0:5]
} 3. g3 {[%emt 0:0:41]} d5 {[%emt 0:0:9]} 4. Bg2 {[%emt 0:0:0]} dxc4 {[%emt 0:0:21]} 5. 0-0 {[%emt 0:1:7]} a6 {[%emt 0:0:30]} 6. Qc2 {[%emt 0:0:21]
} Nbd7 {[%emt 0:0:31]} 7. Qxc4 {[%emt 0:0:13]} b5 {[%emt 0:0:0]} 8. Qc2 {[%emt 0:1:21]} Bb7 {[%emt 0:0:2]} 9. d3 {[%emt 0:0:19]} Bd6 {[%emt 0:1:55]
} 10. a4 {[%emt 0:0:17]} 0-0 {[%emt 0:0:6]} 11. Nc3 {[%emt 0:0:0]} c6 {[%emt 0:0:24]} 12. e4 {[%emt 0:3:13]} e5 {[%emt 0:1:33]} 13. d4 {[%emt 0:0:40]} c5 {[%emt 0:2:54]} 14. dxe5 {[%emt 0:0:58]} Nxe5 {[%emt 0:0:0]} 15. Rd1 {[%emt 0:1:12]} Qb6 {[%emt 0:0:58]} 16. axb5 {[%emt 0:1:28]} axb5 {[%emt 0:0:1]} 17. Rxa8 {[%emt 0:0:3]} Bxa8 {[%emt 0:0:46]} 18. Nh4 {[%emt 0:0:15]
} c4 {[%emt 0:1:13]} 19. Bf4 {[%emt 0:3:20]} Nd3 {[%emt 0:0:0]} 20. Bxd6 {[%emt 0:0:29]} Qxd6 {[%emt 0:0:1]} 21. Nxb5 {[%emt 0:0:9]} Qb4 {[%emt 0:1:43]} 22. Nc3 {[%emt 0:0:4]} g6 {[%emt 0:0:55]} 23. e5 {[%emt 0:0:41]
} Nxe5 {[%emt 0:0:20]} 24. Bxa8 {[%emt 0:0:2]} Rxa8 {[%emt 0:0:0]} 25. Ne4 {[%emt 0:0:8]} Ra6 {[%emt 0:0:38]} 26. Qc3 {[%emt 0:0:52]} Qxc3 {[%emt 0:0:15]} 27. Nxf6+ {[%emt 0:0:4]} Rxf6 {[%emt 0:0:1]} 28. bxc3 {[%emt 0:0:1]} Nd3 {[%emt 0:0:8]} 29. Rd2 {[%emt 0:0:16]} Rb6 {[%emt 0:0:0]} 30. Nf3 {[%emt 0:0:23]} Rb1+ {[%emt 0:0:3]} 31. Kg2 {[%emt 0:0:1]} Rc1 {[%emt 0:0:2]} 32. Nd4 {[%emt 0:0:23]} Rxc3 {[%emt 0:0:3]} 33. Nb5 {[%emt 0:0:2]
} Rc1 {[%emt 0:0:19]} 34. Kf3 {[%emt 0:0:12]} Rb1 {[%emt 0:0:0]} 35. Nd4 {[%emt 0:0:17]} Re1 {[%emt 0:0:14]} 36. Rc2 {[%emt 0:0:12]} Ne5+ {[%emt 0:0:5]} 37. Kg2 {[%emt 0:0:7]} Re4 {[%emt 0:0:1]} 38. Nb5 {[%emt 0:0:3]
} g5 {[%emt 0:0:22]} 39. Nd6 {[%emt 0:0:16]} Rd4 {[%emt 0:0:0]} 40. Nf5 {[%emt 0:0:2]} Rd3 {[%emt 0:0:15]} 41. f4 {[%emt 0:0:6]} gxf4 {[%emt 0:0:3]} 42. gxf4 {[%emt 0:0:1]} Ng4 {[%emt 0:0:12]} 1/2-1/2

[Event "FIDE World Rapid-ch Open 2018"]
[White "Gutenev, Alexander"]
[Black "Demidov, Mikhail"]
[Site "St. Petersburg"]
[Round "10.55"]
[Annotator "ChessBase"]
[Result "0-1"]
[Date "2018.12.27"]
[WhiteElo "2456"]
[BlackElo "2520"]
[PlyCount "116"]
[TimeControl "900+10"]

1. e4 {[%emt 0:2:49]} Nf6 {[%emt 0:0:0]} 2. e5 {[%emt 0:0:2]} Nd5 {[%emt 0:0:0]
} 3. d4 {[%emt 0:0:1]} d6 {[%emt 0:0:0]} 4. c4 {[%emt 0:0:0]} Nb6 {[%emt 0:0:0]} 5. exd6 {[%emt 0:0:1]} exd6 {[%emt 0:0:0]} 6. Nc3 {[%emt 0:0:5]} Be7 {[%emt 0:0:0]} 7. Bd3 {[%emt 0:0:6]} 0-0 {[%emt 0:0:0]} 8. Nge2 {[%emt 0:0:1]} Bg5 {[%emt 0:0:7]} 9. 0-0 {[%emt 0:0:15]} Bxc1 {[%emt 0:0:2]} 10. Rxc1 {[%emt 0:0:4]} Nc6 {[%emt 0:0:3]} 11. b3 {[%emt 0:1:5]
} Bg4 {[%emt 0:0:12]} 12. f3 {[%emt 0:0:10]} Bh5 {[%emt 0:0:0]} 13. Nf4 {[%emt 0:0:11]} Bg6 {[%emt 0:0:4]} 14. Nxg6 {[%emt 0:0:42]} hxg6 {[%emt 0:0:2]} 15. Be4 {[%emt 0:0:4]} Qd7 {[%emt 0:1:38]} 16. c5 {[%emt 0:2:0]
} Nc8 {[%emt 0:3:32]} 17. d5 {[%emt 0:0:56]} N6e7 {[%emt 0:0:0]} 18. c6 {[%emt 0:0:18]} bxc6 {[%emt 0:0:2]} 19. dxc6 {[%emt 0:0:1]} Qd8 {[%emt 0:0:0]} 20. a4 {[%emt 0:1:26]} a5 {[%emt 0:1:22]} 21. Nb5 {[%emt 0:2:11]
} Na7 {[%emt 0:1:46]} 22. Nd4 {[%emt 0:0:11]} Rb8 {[%emt 0:0:0]} 23. Qd2 {[%emt 0:2:37]} Rb4 {[%emt 0:0:12]} 24. Rfd1 {[%emt 0:0:5]} d5 {[%emt 0:2:13]} 25. Nc2 {[%emt 0:2:40]} Rxb3 {[%emt 0:1:53]} 26. Qxa5 {[%emt 0:0:2]
} Naxc6 {[%emt 0:1:1]} 27. Qc5 {[%emt 0:0:2]} Qd6 {[%emt 0:0:0]} 28. Qxd6 {[%emt 0:0:5]} cxd6 {[%emt 0:0:1]} 29. Bxd5 {[%emt 0:0:0]} Nxd5 {[%emt 0:0:2]} 30. Rxd5 {[%emt 0:0:0]} Rc3 {[%emt 0:0:0]} 31. Rdd1 {[%emt 0:0:2]} Ra8 {[%emt 0:0:5]} 32. Ne1 {[%emt 0:0:29]} Rxc1 {[%emt 0:0:7]
} 33. Rxc1 {[%emt 0:0:1]} Nd4 {[%emt 0:0:2]} 34. Rc4 {[%emt 0:0:18]
} Ne6 {[%emt 0:0:22]} 35. Nd3 {[%emt 0:0:22]} Kf8 {[%emt 0:0:0]} 36. Kf2 {[%emt 0:0:5]} Ke7 {[%emt 0:0:3]} 37. h4 {[%emt 0:0:47]} Kd7 {[%emt 0:0:15]} 38. Ke3 {[%emt 0:0:29]} Ra5 {[%emt 0:0:13]} 39. Rb4 {[%emt 0:0:18]
} Kc6 {[%emt 0:0:5]} 40. Rc4+ {[%emt 0:0:1]} Kd7 {[%emt 0:0:0]} 41. Rb4 {[%emt 0:0:1]} Ra7 {[%emt 0:0:0]} 42. g3 {[%emt 0:0:11]} Kc6 {[%emt 0:0:25]} 43. Kd2 {[%emt 0:0:8]} Nc7 {[%emt 0:0:23]} 44. Rc4+ {[%emt 0:0:8]
} Kd7 {[%emt 0:0:1]} 45. Rf4 {[%emt 0:0:5]} Ke7 {[%emt 0:0:0]} 46. Re4+ {[%emt 0:0:3]} Kd7 {[%emt 0:0:4]} 47. Rf4 {[%emt 0:0:1]} Ke7 {[%emt 0:0:28]} 48. Re4+ {[%emt 0:0:1]} Kf8 {[%emt 0:0:1]} 49. Rd4 {[%emt 0:0:13]
} Ne6 {[%emt 0:0:21]} 50. Rxd6 {[%emt 0:0:30]} Rxa4 {[%emt 0:0:0]} 51. Rd7 {[%emt 0:0:18]} Ra2+ {[%emt 0:0:37]} 52. Ke3 {[%emt 0:0:3]} Ra3 {[%emt 0:0:2]} 53. Rd5 {[%emt 0:0:28]} Ke7 {[%emt 0:0:16]} 54. Rb5 {[%emt 0:0:4]
} f6 {[%emt 0:0:13]} 55. Kd2 {[%emt 0:0:15]} Nd4 {[%emt 0:0:0]} 56. Rb7+ {[%emt 0:0:2]} Kf8 {[%emt 0:0:3]} 57. Ne1 {[%emt 0:0:31]} Nxf3+ {[%emt 0:0:6]} 58. Nxf3 {[%emt 0:0:3]} Rxf3 {[%emt 0:0:1]} 0-1

[Event "FIDE World Rapid-ch Open 2018"]
[White "Vishnu Prasanna. V"]
[Black "Tsydypov, Zhamsaran"]
[Site "St. Petersburg"]
[Round "10.56"]
[Annotator "ChessBase"]
[Result "1-0"]
[Date "2018.12.27"]
[WhiteElo "2518"]
[BlackElo "2529"]
[PlyCount "80"]
[TimeControl "900+10"]

1. e4 {[%emt 0:0:0]} c5 {[%emt 0:0:0]} 2. Nf3 {[%emt 0:0:0]} d6 {[%emt 0:0:0]} 3. d4 {[%emt 0:0:0]} cxd4 {[%emt 0:0:0]} 4. Nxd4 {[%emt 0:0:1]} Nf6 {[%emt 0:0:0]} 5. Nc3 {[%emt 0:0:2]} a6 {[%emt 0:0:1]} 6. Be3 {[%emt 0:0:3]
} e6 {[%emt 0:0:5]} 7. Be2 {[%emt 0:0:19]} Be7 {[%emt 0:0:10]
} 8. f4 {[%emt 0:0:26]} Qc7 {[%emt 0:0:7]} 9. g4 {[%emt 0:1:4]} Nfd7 {[%emt 0:0:8]
} 10. g5 {[%emt 0:0:22]} Nc6 {[%emt 0:0:3]} 11. Qd2 {[%emt 0:0:0]} b5 {[%emt 0:0:5]} 12. a3 {[%emt 0:1:9]} Bb7 {[%emt 0:0:5]} 13. f5 {[%emt 0:1:38]} Nc5 {[%emt 0:0:19]} 14. fxe6 {[%emt 0:1:3]} fxe6 {[%emt 0:0:0]} 15. 0-0 {[%emt 0:0:33]} 0-0-0 {[%emt 0:3:7]} 16. b4 {[%emt 0:3:15]} Nxd4 {[%emt 0:0:8]} 17. Bxd4 {[%emt 0:0:4]} Nxe4 {[%emt 0:0:17]} 18. Nxe4 {[%emt 0:0:2]} Bxe4 {[%emt 0:0:2]} 19. c4 {[%emt 0:0:13]} Qb7 {[%emt 0:0:0]} 20. cxb5 {[%emt 0:0:24]} axb5 {[%emt 0:0:1]} 21. a4 {[%emt 0:1:25]} e5 {[%emt 0:0:38]} 22. Be3 {[%emt 0:0:48]} d5 {[%emt 0:0:13]} 23. axb5 {[%emt 0:2:18]
} d4 {[%emt 0:0:5]} 24. b6 {[%emt 0:1:29]} Qxb6 {[%emt 0:0:0]} 25. Rfc1+ {[%emt 0:0:56]} Kd7 {[%emt 0:1:29]} 26. Ra6 {[%emt 0:0:17]} Qb7 {[%emt 0:0:8]} 27. Qa2 {[%emt 0:0:12]} Ke8 {[%emt 0:0:13]} 28. Ra7 {[%emt 0:0:25]
} Qb8 {[%emt 0:8:13]} 29. Rcc7 {[%emt 0:0:23]} Qxb4 {[%emt 0:0:0]} 30. Bd2 {[%emt 0:0:7]} Qd6 {[%emt 0:0:32]} 31. Rxe7+ {[%emt 0:0:2]
} Qxe7 {[%emt 0:0:2]} 32. Rxe7+ {[%emt 0:0:3]} Kxe7 {[%emt 0:0:1]} 33. Bb4+ {[%emt 0:0:2]} Kd7 {[%emt 0:0:2]} 34. Bb5+ {[%emt 0:0:6]} Kc8 {[%emt 0:0:23]
} 35. Qe6+ {[%emt 0:0:3]} Kb7 {[%emt 0:0:5]} 36. Qe7+ {[%emt 0:0:7]
} Kb6 {[%emt 0:0:3]} 37. Qc5+ {[%emt 0:0:7]} Kb7 {[%emt 0:0:0]} 38. Ba5 {[%emt 0:0:10]} Rc8 {[%emt 0:0:11]} 39. Ba6+ {[%emt 0:0:3]} Ka8 {[%emt 0:0:5]} 40. Bxc8 {[%emt 0:0:3]} Rxc8 1-0

[Event "FIDE World Rapid-ch Open 2018"]
[White "Sanal, Vahap"]
[Black "Bindrich, Falko"]
[Site "St. Petersburg"]
[Round "10.57"]
[Annotator "ChessBase"]
[Result "1/2-1/2"]
[Date "2018.12.27"]
[WhiteElo "2490"]
[BlackElo "2606"]
[PlyCount "105"]
[TimeControl "900+10"]

1. e4 {[%emt 0:0:0]} e5 {[%emt 0:0:0]} 2. Nf3 {[%emt 0:0:2]} Nf6 {[%emt 0:0:0]
} 3. Nxe5 {[%emt 0:0:43]} d6 {[%emt 0:0:0]} 4. Nf3 {[%emt 0:0:0]} Nxe4 {[%emt 0:0:0]} 5. Nc3 {[%emt 0:0:37]} Nxc3 {[%emt 0:0:0]} 6. dxc3 {[%emt 0:0:2]} Be7 {[%emt 0:0:0]} 7. Be3 {[%emt 0:0:2]} 0-0 {[%emt 0:0:4]
} 8. Qd2 {[%emt 0:0:4]} Nd7 {[%emt 0:0:2]} 9. 0-0-0 {[%emt 0:0:0]} Nf6 {[%emt 0:0:1]} 10. Bd3 {[%emt 0:0:2]} c5 {[%emt 0:0:2]} 11. Rhe1 {[%emt 0:0:2]} Qa5 {[%emt 0:0:5]} 12. Kb1 {[%emt 0:0:3]} Be6 {[%emt 0:0:6]
} 13. c4 {[%emt 0:0:7]} Qxd2 {[%emt 0:0:2]} 14. Bxd2 {[%emt 0:0:11]
} Rfe8 {[%emt 0:0:25]} 15. h3 {[%emt 0:1:14]} h6 {[%emt 0:0:0]} 16. Nh4 {[%emt 0:1:58]} Ng4 {[%emt 0:0:49]} 17. hxg4 {[%emt 0:0:20]} Bxh4 {[%emt 0:0:2]} 18. g3 {[%emt 0:0:8]} Bf6 {[%emt 0:0:16]} 19. Be2 {[%emt 0:1:34]
} Bd4 {[%emt 0:1:13]} 20. Rf1 {[%emt 0:1:26]} Bd5 {[%emt 0:0:0]} 21. Be3 {[%emt 0:0:38]} Bg2 {[%emt 0:0:50]} 22. Rg1 {[%emt 0:0:14]} Bc6 {[%emt 0:0:10]} 23. Bxd4 {[%emt 0:0:36]} cxd4 {[%emt 0:0:43]} 24. Rd2 {[%emt 0:1:6]
} Re5 {[%emt 0:1:47]} 25. b3 {[%emt 0:0:14]} Rae8 {[%emt 0:0:0]} 26. Bd1 {[%emt 0:0:3]} Re1 {[%emt 0:0:20]} 27. Rxe1 {[%emt 0:0:5]} Rxe1 {[%emt 0:0:1]} 28. Kb2 {[%emt 0:0:3]} Rf1 {[%emt 0:0:9]} 29. b4 {[%emt 0:1:0]
} Kf8 {[%emt 0:0:57]} 30. f4 {[%emt 0:1:54]} Bf3 {[%emt 0:0:0]} 31. Bxf3 {[%emt 0:0:4]} Rxf3 {[%emt 0:0:1]} 32. Rd3 {[%emt 0:2:46]} Rxd3 {[%emt 0:1:27]} 33. cxd3 {[%emt 0:0:2]} b6 {[%emt 0:0:6]} 34. Kb3 {[%emt 0:0:13]
} Ke7 {[%emt 0:0:3]} 35. a4 {[%emt 0:0:11]} Kd7 {[%emt 0:0:0]} 36. a5 {[%emt 0:1:41]} g5 {[%emt 0:2:30]} 37. fxg5 {[%emt 0:0:35]} hxg5 {[%emt 0:0:2]} 38. axb6 {[%emt 0:0:25]} axb6 {[%emt 0:0:1]} 39. Ka4 {[%emt 0:0:34]
} Kc6 {[%emt 0:0:8]} 40. Ka3 {[%emt 0:0:1]} Kd7 {[%emt 0:0:0]} 41. Kb3 {[%emt 0:0:1]} Kc7 {[%emt 0:0:14]} 42. Kc2 {[%emt 0:0:12]} Kc6 {[%emt 0:0:5]} 43. Kd2 {[%emt 0:0:15]} Kd7 {[%emt 0:0:39]} 44. Kc2 {[%emt 0:0:5]
} Kc6 {[%emt 0:0:3]} 45. Kb2 {[%emt 0:0:8]} Kd7 {[%emt 0:0:0]} 46. Ka2 {[%emt 0:0:2]} Kc6 {[%emt 0:0:11]} 47. Ka3 {[%emt 0:0:2]} Kc7 {[%emt 0:0:2]} 48. Kb3 {[%emt 0:0:1]} Kd7 {[%emt 0:0:4]} 49. Kc2 {[%emt 0:0:18]
} Kc6 {[%emt 0:0:1]} 50. Kd2 {[%emt 0:0:1]} Kd7 {[%emt 0:0:0]} 51. Ke2 {[%emt 0:0:17]} Ke6 {[%emt 0:0:9]} 52. Kd2 {[%emt 0:0:21]} Kd7 {[%emt 0:0:1]} 53. Kc2 {[%emt 0:0:2]} 1/2-1/2

[Event "FIDE World Rapid-ch Open 2018"]
[White "Kobo, Ori"]
[Black "Moiseenko, Vadim"]
[Site "St. Petersburg"]
[Round "10.58"]
[Annotator "ChessBase"]
[Result "0-1"]
[Date "2018.12.27"]
[WhiteElo "2494"]
[BlackElo "2501"]
[PlyCount "80"]
[TimeControl "900+10"]

1. Nf3 {[%emt 0:0:0]} Nf6 {[%emt 0:0:4]} 2. c4 {[%emt 0:0:0]} b6 {[%emt 0:0:4]
} 3. g3 {[%emt 0:0:4]} Bb7 {[%emt 0:0:2]} 4. Bg2 {[%emt 0:0:0]} g6 {[%emt 0:0:12]} 5. d4 {[%emt 0:0:31]} Bg7 {[%emt 0:0:9]} 6. 0-0 {[%emt 0:0:35]
} 0-0 {[%emt 0:0:2]} 7. d5 {[%emt 0:0:16]} Ne4 {[%emt 0:0:2]
} 8. Qc2 {[%emt 0:0:4]} f5 {[%emt 0:0:2]} 9. Ng5 {[%emt 0:0:25]} Nxg5 {[%emt 0:0:40]
} 10. Bxg5 {[%emt 0:0:3]} Na6 {[%emt 0:0:5]} 11. Nc3 {[%emt 0:0:30]
} Qe8 {[%emt 0:2:19]} 12. Bxe7 {[%emt 0:1:11]} Rf7 {[%emt 0:0:0]} 13. Bg5 {[%emt 0:0:23]} d6 {[%emt 0:0:42]} 14. Rae1 {[%emt 0:0:39]} Be5 {[%emt 0:2:44]} 15. Bd2 {[%emt 0:1:40]} f4 {[%emt 0:1:13]} 16. Bh3 {[%emt 0:0:0]} Bc8 {[%emt 0:0:7]} 17. Bxc8 {[%emt 0:0:2]} Qxc8 {[%emt 0:0:12]} 18. Kg2 {[%emt 0:1:15]} Qd7 {[%emt 0:2:45]} 19. Ne4 {[%emt 0:0:33]} Nc5 {[%emt 0:0:22]
} 20. b4 {[%emt 0:2:54]} Nxe4 {[%emt 0:0:6]} 21. Qxe4 {[%emt 0:0:1]
} Raf8 {[%emt 0:1:11]} 22. f3 {[%emt 0:0:9]} Qa4 {[%emt 0:0:0]} 23. Qb1 {[%emt 0:0:34]} a5 {[%emt 0:0:37]} 24. Qb3 {[%emt 0:2:0]} Qxb3 {[%emt 0:0:2]} 25. axb3 {[%emt 0:0:1]} axb4 {[%emt 0:0:1]} 26. Bxb4 {[%emt 0:0:50]
} g5 {[%emt 0:0:2]} 27. e3 {[%emt 0:0:31]} Ra8 {[%emt 0:0:31]
} 28. exf4 {[%emt 0:0:34]} gxf4 {[%emt 0:0:6]} 29. g4 {[%emt 0:0:21]} b5 {[%emt 0:0:43]
} 30. cxb5 {[%emt 0:1:11]} Rb8 {[%emt 0:0:10]} 31. Re4 {[%emt 0:0:17]
} Rxb5 {[%emt 0:0:2]} 32. Rc1 {[%emt 0:0:2]} Rxd5 {[%emt 0:0:0]} 33. Be1 {[%emt 0:0:48]} h5 {[%emt 0:1:3]} 34. gxh5 {[%emt 0:0:26]} Rd3 {[%emt 0:0:15]} 35. h6 {[%emt 0:0:37]} Rxb3 {[%emt 0:0:10]} 36. Bh4 {[%emt 0:0:14]
} Kh7 {[%emt 0:0:12]} 37. Bg5 {[%emt 0:0:3]} Rb2+ {[%emt 0:0:0]} 38. Kh1 {[%emt 0:0:20]} Rf2 {[%emt 0:0:12]} 39. Rb1 {[%emt 0:0:18]} Rxf3 {[%emt 0:0:11]} 40. Rb7 {[%emt 0:0:5]} Rc3 {[%emt 0:0:33]} 0-1

[Event "FIDE World Rapid-ch Open 2018"]
[White "Pershin, Denis"]
[Black "Zvjaginsev, Vadim"]
[Site "St. Petersburg"]
[Round "10.59"]
[Annotator "ChessBase"]
[Result "0-1"]
[Date "2018.12.27"]
[WhiteElo "2400"]
[BlackElo "2642"]
[PlyCount "86"]
[TimeControl "900+10"]

1. e4 {[%emt 0:0:0]} c5 {[%emt 0:0:0]} 2. Nf3 {[%emt 0:0:0]} Nc6 {[%emt 0:0:0]
} 3. d4 {[%emt 0:0:0]} cxd4 {[%emt 0:0:0]} 4. Nxd4 {[%emt 0:0:0]} Nf6 {[%emt 0:0:3]} 5. Nc3 {[%emt 0:0:0]} g6 {[%emt 0:0:1]} 6. Be3 {[%emt 0:0:19]} Bg7 {[%emt 0:0:3]} 7. Bc4 {[%emt 0:0:8]} 0-0 {[%emt 0:0:0]} 8. Bb3 {[%emt 0:0:5]} d6 {[%emt 0:0:8]} 9. f3 {[%emt 0:0:2]} Qa5 {[%emt 0:0:2]
} 10. Qd2 {[%emt 0:0:28]} Nxd4 {[%emt 0:0:2]} 11. Bxd4 {[%emt 0:0:3]
} Be6 {[%emt 0:0:2]} 12. 0-0-0 {[%emt 0:1:6]} b5 {[%emt 0:0:0]} 13. Kb1 {[%emt 0:0:21]} b4 {[%emt 0:0:3]} 14. Nd5 {[%emt 0:1:50]} Bxd5 {[%emt 0:0:5]} 15. exd5 {[%emt 0:0:2]} Qb5 {[%emt 0:0:4]} 16. Qd3 {[%emt 0:1:14]
} Qxd3 {[%emt 0:0:19]} 17. cxd3 {[%emt 0:0:28]} Nd7 {[%emt 0:0:0]} 18. Bxg7 {[%emt 0:1:20]} Kxg7 {[%emt 0:0:2]} 19. Rhe1 {[%emt 0:0:0]} Kf6 {[%emt 0:1:4]} 20. Re4 {[%emt 0:0:2]} a5 {[%emt 0:0:18]} 21. Rde1 {[%emt 0:1:48]} Nc5 {[%emt 0:0:39]} 22. Rf4+ {[%emt 0:0:2]} Kg7 {[%emt 0:0:0]} 23. Bc4 {[%emt 0:0:16]} Ra7 {[%emt 0:1:5]} 24. d4 {[%emt 0:3:22]} Na4 {[%emt 0:0:6]} 25. Rfe4 {[%emt 0:1:24]} Nb6 {[%emt 0:0:6]} 26. Bb5 {[%emt 0:0:1]
} Rb8 {[%emt 0:3:8]} 27. Bc6 {[%emt 0:0:35]} Kf8 {[%emt 0:0:0]} 28. h4 {[%emt 0:0:19]} Rc7 {[%emt 0:2:36]} 29. Rf4 {[%emt 0:0:2]} h6 {[%emt 0:0:37]
} 30. h5 {[%emt 0:2:5]} g5 {[%emt 0:0:6]} 31. Rf5 {[%emt 0:0:0]} Nd7 {[%emt 0:1:34]} 32. f4 {[%emt 0:2:10]} g4 {[%emt 0:0:43]} 33. Re6 {[%emt 0:0:8]} Nf6 {[%emt 0:0:2]} 34. Rexf6 {[%emt 0:0:3]} exf6 {[%emt 0:0:1]
} 35. Rxf6 {[%emt 0:0:1]} Rd8 {[%emt 0:0:1]} 36. Kc2 {[%emt 0:0:28]
} Kg7 {[%emt 0:0:21]} 37. Rf5 {[%emt 0:0:1]} Re8 {[%emt 0:0:0]} 38. Kd3 {[%emt 0:0:45]} Re1 {[%emt 0:0:8]} 39. Kc4 {[%emt 0:0:6]} Re2 {[%emt 0:0:12]} 40. Kb5 {[%emt 0:0:12]} Rxg2 {[%emt 0:0:8]} 41. Kb6 {[%emt 0:0:1]
} Re7 {[%emt 0:0:7]} 42. Bb5 {[%emt 0:0:10]} Rc2 {[%emt 0:0:0]} 43. Bd3 {[%emt 0:0:2]} Rc1 {[%emt 0:0:13]} 0-1